Workbook

Sheet Notes
J1: © Monteil 2001,2002
A2: Feuille Equation | D2: Intégration d'une équation différentielle unique (courbe de croissance logistique)
B3: en partie gauche de l'écran
C4: bouton Plein Ecran : bascule le mode plein-écran / écran fenêtré avec barres d'outils d'Excel
C5: choix d'une méthode parmi 3 : Euler, Runge-Kutta à 2 approximations et Runge-Kutta à 4 approximations
C6: affichage de l'écart maximal entre la solution théorique (ici connue) et l'estimation effectuée
C7: bouton d'affectation d'un jeu de valeurs standard aux différents paramètres modifiables
C8: modification des paramètres descriptifs de l'équation : taux de croissance et valeur asymptotique
C9: modification de l'état initial
C10: modification de la valeur du pas de temps utilisé pour l'intégration
C11: modification de la date de fin de l'intégration (ce qui modifie implicitement le nombre de pas de calculs)
B12: sur le graphique
C13: bouton Mode Couleur : bascule entre fond de couleur et fond blanc (pour impression)
C14: affichage de l'écart courant entre la solution théorique (ici connue) et l'estimation effectuée
C15: modification de la date courante (défilementau bas du graphique)
C16: en mode Runge-Kutta 4 seulement : bouton de zoom sur la résolution de l'état courant
B17: en partie droite de l'écran
C18: plage de calcul pour les differents instants d'intégration (nombre de ligne lié au pas et à la durée d'intégration)
C19: case à cocher près du libellé Y solution : permet d'afficher ou masquer la solution
B20: en-dessous de l'écran
C21: zone de calcul pour l'affichage en mode Zoom (non utile pour l'usager final)
A22: Feuille Système | D22: Intégration d'un système de 2 équations différentielles : Modèle proie/prédateur (Lotka-Volterra)
B23: en haut de l'écran
C24: bouton Plein Ecran : bascule le mode plein-écran / écran avec barres d'outils d'Excel
C25: choix d'une méthode parmi 3 : Euler, Runge-Kutta à 2 approximations et Runge-Kutta à 4 approximations
C26: bouton d'affectation d'un jeu de valeurs standard aux différents paramètres modifiables
B27: en partie gauche de l'écran
C28: modification des paramètres descriptifs des équations : coef. a1, a2, b1 et b2
C29: modification de l'état initial des 2 variables
C30: modification de la valeur du pas de temps utilisé pour l'intégration
J31: Claude Monteil
J32: 2002-07-29

Sheet Equation
B1: © Monteil 2001,2002 | L1: TRUE | M1: =IF(clAvecSolution,1,NA()) -> 1
C2: EQUATION DIFFERENTIELLE : dY/dt = cr * Y * (1 - Y / K) | J2: t | K2: Y estimé | L2: Y solution | M2: Y écart
H3: =clPasCourant -> 13 | I3: 13 | J3: 0 | K3: =Yinitial+0*(cr+K+clMethode+clNbPas) -> 100 | L3: =K / (1 + (K/Yinitial-1)*EXP(-cr*J$3:J$65536))*OK -> 100 | M3: =L$3:L$65536-K$3:K$65536 -> 0
H4: 13 | I4: 13 | J4: =tPrec+dt -> 4 | K4: =Y(dt,Yprec) ->  | L4: 182.0622033
H5: 13 | I5: 13 | J5: 8 | K5: =Y(dt,Yprec) ->  | L5: 331.2431694
H6: 13 | I6: 13 | J6: 12 | L6: 601.9252362
B7: Ecart max | H7: 13 | I7: 13 | J7: 16 | L7: 1091.378558
B8: 3 | H8: 13 | I8: 13 | J8: 20 | L8: 1970.937296
B9: =MAX(ABS(Yestimes-Ysolutions)) ->  | H9: 13 | I9: 13 | J9: 24 | L9: 3534.018621
H10: 13 | I10: 13 | J10: 28 | L10: 6257.594669
H11: 13 | I11: 13 | J11: 32 | L11: 10844.20239
H12: 13 | I12: 13 | J12: 36 | L12: 18142.02329
B13: cr | H13: 13 | I13: 13 | J13: 40 | L13: 28766.43687
B14: =clCr/100 -> 0.15 | H14: 13 | I14: 13 | J14: 44 | L14: 42390.70576
B15: 15 | H15: 13 | I15: 13 | J15: 48 | L15: 57279.04306
B16: K | H16: 13 | I16: 13 | J16: 52 | L16: 70955.94181
B17: =clK*1000 -> 100000 | H17: 13 | I17: 13 | J17: 56 | L17: 81656.4863
B18: 100 | H18: 13 | I18: 13 | J18: 60 | L18: 89024.49145
H19: 13 | I19: 13 | J19: 64 | L19: 93662.68813
B20: Y initial | H20: 13 | I20: 13 | J20: 68 | L20: 96419.63537
B21: =clYinitial*10 -> 100 | H21: 13 | I21: 13 | J21: 72 | L21: 98002.79094
B22: 10 | H22: 13 | I22: 13 | J22: 76 | L22: 98893.94154
H23: 13 | I23: 13 | J23: 80 | L23: 99389.93779
B24: dt | H24: 13 | I24: 13 | J24: 84 | L24: 99664.26664
B25: =clDt/10 -> 4 | H25: 13 | I25: 13 | J25: 88 | L25: 99815.4661
B26: 40 | H26: 13 | I26: 13 | J26: 92 | L26: 99898.64126
H27: 13 | I27: 13 | J27: 96 | L27: 99944.34769
B28: t final | H28: 13 | I28: 13 | J28: 100 | L28: 99969.44969
B29: =clNbPas*dt -> 120 | H29: 13 | I29: 13 | J29: 104 | L29: 99983.23133
B30: 30 | H30: 13 | I30: 13 | J30: 108 | L30: 99990.79646
C31: =clPasCourant -> 13 | D31: 13 | E31: 13 | F31: 13 | G31: 13 | H31: 13 | J31: 112 | L31: 99994.94878
J32: 116 | L32: 99997.22777
J33: =tPrec+dt -> 120 | K33: =Y(dt,Yprec) ->  | L33: 99998.47855
B35: ="Point n°"&clPasCourant&" : t = "&TEXT(tCourant,"0.0") -> Point n°13 : t = 52.0 | F35: ="Ecart : "&ROUND(INDEX(Calculs,clPasCourant+1,4),0) -> 
B36: Point | C36: t | D36: Y | E36: Y' | F36: 13
B37: P | C37: =INDEX(Calculs,clPasCourant,1) -> 48 | D37: =INDEX(Calculs,clPasCourant,2) ->  | E37: =Yprime(D37) ->  | F37: Point de départ
B38: A | C38: =tDepart+dt -> 52 | D38: =Ycourant+dt*YpCourant ->  | F38: ="Yeuler : "&ROUND(Ya,0) -> 
B39: MA | C39: =tDepart+dt/2 -> 50 | D39: =Ycourant+dt/2*YpCourant ->  | E39: =Yprime(D39) -> 
B40: =B$37 -> P | C40: =C$37 -> 48 | D40: =D$37 -> 
B41: B | C41: =tDepart+dt -> 52 | D41: =Ycourant+dt*YpMA ->  | F41: ="Yr.-k.2 : "&ROUND(Yb,0) -> 
B42: MB | C42: =tDepart+dt/2 -> 50 | D42: =Ycourant+dt/2*YpMA ->  | E42: =Yprime(D42) -> 
B43: =B$37 -> P | C43: =C$37 -> 48 | D43: =D$37 -> 
B44: C | C44: =tDepart+dt -> 52 | D44: =Ycourant+dt*YpMB ->  | E44: =Yprime(D44) ->  | F44: 3ème approximation
B45: =B$37 -> P | C45: =C$37 -> 48 | D45: =D$37 -> 
B46: D | C46: =tDepart+dt -> 52 | D46: =Ycourant+dt*YpC ->  | F46: 4ème approximation
B47: Q | C47: =tDepart+dt -> 52 | D47: =(Ya+2*Yb+2*Yc+Yd)/6 ->  | F47: ="Yr.-k.4 : "&ROUND(Yq,0) -> 
B48: S | C48: =tDepart+dt -> 52 | D48: =K / (1 + (K/Yinitial-1)*EXP(-cr*C48)) -> 70955.94181 | F48: ="Ysolut. : "&ROUND(Ys,0) -> Ysolut. : 70956
C49: =tCourant -> 52 | D49: 0 | F49: base du trait vertical

Sheet Systeme
A1: 1 | B1: © Monteil 2001,2002
C2: SYSTEME DIFFERENTIEL : | F2: dY1/dt = a1 * Y1 - a2 * Y1 * Y2 | J2: t | K2: Y1 | L2: Y2
F3: dY2/dt = - b1 * Y2 + b2 * Y1 * Y2 | J3: 0 | K3: =Y1initial+0*(clMethode+a_1+A_2+b_1+b_2+dt) -> 40000 | L3: =Y2initial+0*(clMethode+a_1+A_2+b_1+b_2+dt) -> 300
J4: =J3+dt -> 1 | K4: =Y_1(dt,$K3,$L3) ->  | L4: =Y_2(dt,$K3,$L3) -> 
J5: 2 | K5: =Y_1(dt,$K4,$L4) ->  | L5: =Y_2(dt,$K4,$L4) -> 
J6: 3 | K6: =Y_1(dt,$K5,$L5) ->  | L6: =Y_2(dt,$K5,$L5) -> 
B7: a1 | J7: 4
B8: =clA_1/100 -> 0.35 | J8: 5
B9: 35 | J9: 6
B10: a2 | J10: 7
B11: =clA_2/10000 -> 0.001 | J11: 8
B12: 10 | J12: 9
B13: b1 | J13: 10
B14: =clB_1/100 -> 0.25 | J14: 11
B15: 25 | J15: 12
B16: b2 | J16: 13
B17: =clB_2/2000000 -> 5e-06 | J17: 14
B18: 10 | J18: 15
J19: 16
B20: Y1 initial | J20: 17
B21: =clY1initial*1000 -> 40000 | J21: 18
B22: 40 | J22: 19
B23: Y2 initial | J23: 20
B24: =clY2initial*50 -> 300 | J24: 21
B25: 6 | J25: 22
J26: 23
B27: dt | J27: 24
B28: =clDt/10 -> 1 | J28: 25
B29: 10 | J29: 26
J30: 27
J31: 28
J32: 29
J33: 30
J34: 31
J35: 32
J36: =J35+dt -> 33 | K36: =Y_1(dt,$K35,$L35) ->  | L36: =Y_2(dt,$K35,$L35) -> 
J37: 34
J38: 35
J39: 36
J40: 37
J41: 38
J42: 39
J43: 40
J44: 41
J45: 42
J46: 43
J47: 44
J48: 45
J49: 46
J50: 47
J51: 48
J52: 49
J53: 50
J54: 51
J55: 52
J56: 53
J57: 54
J58: 55
J59: 56
J60: 57
J61: 58
J62: 59
J63: 60
J64: 61
J65: 62
J66: 63
J67: 64
J68: =J67+dt -> 65 | K68: =Y_1(dt,$K67,$L67) ->  | L68: =Y_2(dt,$K67,$L67) -> 
J69: 66
J70: 67
J71: 68
J72: 69
J73: 70
J74: 71
J75: 72
J76: 73
J77: 74
J78: 75
J79: 76
J80: 77
J81: 78
J82: 79
J83: 80
J84: 81
J85: 82
J86: 83
J87: 84
J88: 85
J89: 86
J90: 87
J91: 88
J92: 89
J93: 90
J94: 91
J95: 92
J96: 93
J97: 94
J98: 95
J99: 96
J100: 97
J101: 98
J102: 99
J103: 100
